bitfinex/quotes_BTCUSD_20241022
["timestamp","ask_amount","ask_price","bid_price","bid_amount"]
[1729569340723,0.001,67403.0,67402.0,0.3424493]
[1729569342348,0.14836,67404.0,67402.0,0.3424493]
[1729569342553,0.14936,67404.0,67402.0,0.3424493]
[1729569342994,0.14836,67404.0,67402.0,0.3424493]
[1729569343211,0.14836,67404.0,67402.0,0.42537416]
[1729569343419,0.001,67403.0,67402.0,0.42537416]
[1729569343826,0.19910715,67405.0,67402.0,0.42537416]
[1729569343978,0.19910715,67405.0,67404.0,0.10829658]
[1729569344186,0.19910715,67405.0,67404.0,0.25725573]
[1729569344414,0.19910493,67405.0,67404.0,0.25725573]
[1729569344986,0.19910493,67405.0,67404.0,0.27846005]
[1729569346467,0.05074793,67405.0,67404.0,0.27846005]
[1729569346687,0.001652,67405.0,67404.0,0.75964684]
[1729569346891,0.001652,67409.0,67408.0,0.005]
[1729569347097,0.001652,67409.0,67408.0,0.71570231]
[1729569347311,0.001652,67409.0,67408.0,0.73690314]
[1729569347530,0.001652,67409.0,67408.0,0.77756571]
[1729569349490,0.001652,67409.0,67408.0,0.78056571]
[1729569350493,0.001652,67409.0,67408.0,0.78456571]
[1729569354395,0.001652,67409.0,67408.0,1.48456571]
[1729569354798,0.001652,67409.0,67408.0,0.78456571]
[1729569356507,0.001652,67409.0,67408.0,0.35095998]
[1729569356765,0.15,67409.0,67408.0,0.17715998]
[1729569357678,0.15,67409.0,67408.0,0.17315998]
[1729569357945,0.15,67409.0,67408.0,0.17415998]
[1729569358390,0.15,67409.0,67408.0,0.17015998]
[1729569358838,0.153,67409.0,67408.0,0.17015998]
[1729569359521,0.156,67409.0,67408.0,0.17015998]
[1729569360707,0.157,67409.0,67408.0,0.17015998]
[1729569361177,0.16,67409.0,67408.0,0.17015998]
[1729569361651,0.157,67409.0,67408.0,0.17015998]
[1729569362076,0.16,67409.0,67408.0,0.17015998]
[1729569365333,0.16,67409.0,67408.0,0.14895915]
[1729569367837,0.16464033,67409.0,67408.0,0.14895915]
[1729569370408,0.16,67409.0,67408.0,0.14895915]
[1729569370640,0.20436463,67409.0,67408.0,0.14895915]
[1729569371118,0.21364574,67409.0,67408.0,0.14895915]
[1729569371349,0.16928111,67409.0,67408.0,0.14895915]
[1729569371808,0.16928111,67409.0,67408.0,0.15061115]
[1729569372265,0.23582806,67409.0,67408.0,0.15061115]
[1729569374297,0.23582809,67409.0,67408.0,0.15061115]
[1729569375420,0.16928114,67409.0,67408.0,0.15061115]
[1729569377717,0.21365424,67409.0,67408.0,0.15061115]
[1729569378189,0.21365414,67409.0,67408.0,0.15061115]
[1729569378826,0.16928104,67409.0,67408.0,0.15061115]
[1729569380000,0.02093304,67409.0,67408.0,0.47438665]
[1729569380226,0.01629253,67409.0,67408.0,0.47716115]
[1729569380456,0.01629253,67409.0,67408.0,0.49830377]
[1729569381154,0.00929253,67409.0,67408.0,0.49830377]
[1729569381377,0.001652,67409.0,67408.0,0.49830377]
[1729569381582,0.001652,67409.0,67408.0,0.49930377]
[1729569382663,0.001652,67409.0,67408.0,0.63033776]
[1729569385788,0.001652,67409.0,67408.0,0.49924047]
[1729569387170,0.001652,67409.0,67408.0,0.34589047]
[1729569387404,0.001652,67409.0,67408.0,0.45418705]
[1729569389230,0.001652,67409.0,67408.0,0.60253705]
[1729569389497,0.001652,67409.0,67408.0,0.45418705]
[1729569393213,0.001652,67409.0,67408.0,0.72112736]
[1729569393450,0.001652,67409.0,67408.0,0.83942394]
[1729569393656,0.001652,67409.0,67408.0,0.73112736]
[1729569400664,0.001652,67409.0,67408.0,0.73706336]
[1729569402079,0.001652,67409.0,67408.0,0.73906336]
[1729569403282,0.001652,67409.0,67408.0,0.84535994]
[1729569403523,0.001652,67409.0,67408.0,0.73706336]
[1729569404010,0.001652,67409.0,67408.0,1.43706336]
[1729569405622,0.001652,67409.0,67408.0,0.73706336]
[1729569408018,0.001652,67409.0,67408.0,0.72706336]
[1729569408243,0.001652,67409.0,67408.0,0.73706336]
[1729569408471,0.001652,67409.0,67408.0,1.43706336]
[1729569410050,0.001652,67409.0,67408.0,0.73706336]
[1729569411617,0.001652,67409.0,67408.0,1.43706336]
[1729569412338,0.001652,67409.0,67408.0,0.73706336]
[1729569412756,0.148318,67423.0,67419.0,0.10829658]
[1729569413002,0.148318,67423.0,67420.0,0.14895915]
[1729569413219,0.148318,67423.0,67420.0,0.16982711]
[1729569414087,0.158318,67423.0,67420.0,0.16982711]
[1729569414306,0.01,67423.0,67420.0,0.16982711]
[1729569414529,0.021,67423.0,67420.0,0.16982711]
[1729569414962,0.021,67423.0,67420.0,0.31814911]
[1729569415481,0.021,67423.0,67420.0,0.25619921]
[1729569415934,0.011,67423.0,67420.0,0.25619921]
[1729569416070,0.148315,67424.0,67420.0,0.16982711]
[1729569416302,0.011,67423.0,67420.0,0.16982711]
[1729569416875,0.023,67423.0,67420.0,0.16982711]
[1729569417061,0.012,67423.0,67420.0,0.16982711]
[1729569418118,0.012826,67423.0,67420.0,0.16982711]
[1729569419683,0.14832,67422.0,67420.0,0.16982711]
[1729569420993,0.15932,67422.0,67420.0,0.16982711]
[1729569421199,0.17132,67422.0,67420.0,0.16982711]
[1729569421869,0.023,67422.0,67420.0,0.16982711]
[1729569422748,0.04438166,67421.0,67420.0,0.16982711]
[1729569423466,0.04440151,67421.0,67420.0,0.16982711]
[1729569423898,0.05640151,67422.0,67420.0,0.16982711]
[1729569424110,0.011,67421.0,67420.0,0.16982711]
[1729569424568,0.05540151,67421.0,67420.0,0.16982711]
[1729569424775,0.06104088,67421.0,67420.0,0.16982711]
[1729569424985,0.05640151,67421.0,67420.0,0.16982711]
[1729569425195,0.06104088,67421.0,67420.0,0.16982711]
[1729569425621,0.01663937,67421.0,67420.0,0.16982711]
[1729569427323,0.09424164,67421.0,67420.0,0.16982711]
[1729569427513,0.02763937,67421.0,67420.0,0.16982711]
[1729569429035,0.023,67421.0,67420.0,0.16982711]
[1729569429279,0.02763936,67421.0,67420.0,0.16982711]
[1729569429921,0.02763936,67421.0,67420.0,0.17147911]
[1729569431282,0.023,67421.0,67420.0,0.17147911]
[1729569431516,0.02763936,67421.0,67420.0,0.17147911]
[1729569431951,0.09429333,67421.0,67420.0,0.17147911]
[1729569433468,0.02763936,67421.0,67420.0,0.31980211]
[1729569433679,0.02763936,67421.0,67420.0,0.49780211]
[1729569434306,0.07208054,67421.0,67420.0,0.49780211]
[1729569434998,0.06744118,67421.0,67420.0,0.49780211]
[1729569437073,0.023,67421.0,67420.0,0.49780211]
[1729569437289,0.023,67421.0,67420.0,0.61824438]
[1729569437504,0.06744118,67421.0,67420.0,0.61824438]
[1729569438171,0.06744118,67421.0,67420.0,0.49780211]
[1729569438579,0.023,67421.0,67420.0,0.49780211]
[1729569438803,0.02763917,67421.0,67420.0,0.49780211]
[1729569439730,0.09429314,67421.0,67420.0,0.17147911]
[1729569439963,0.26483214,67421.0,67420.0,0.17147911]
[1729569440167,0.42897177,67421.0,67420.0,0.17147911]
[1729569441505,0.3400998,67421.0,67420.0,0.27977569]
[1729569441948,0.42903226,67421.0,67420.0,0.27977569]
[1729569443321,0.42903598,67421.0,67420.0,0.27977569]
[1729569444814,0.28071498,67421.0,67420.0,0.27977569]
[1729569447339,0.27607581,67421.0,67420.0,0.27977569]
[1729569447553,0.28071523,67421.0,67420.0,0.27977569]
[1729569449590,0.19178262,67421.0,67420.0,0.27977569]
[1729569449944,0.28071106,67421.0,67420.0,0.27977569]
[1729569453009,0.42903206,67421.0,67420.0,0.27977569]
[1729569453226,0.42902969,67421.0,67420.0,0.27977569]
[1729569453900,0.28070869,67421.0,67420.0,0.27977569]
[1729569454340,0.42902969,67421.0,67420.0,0.17147911]
[1729569454559,0.34009938,67421.0,67420.0,0.17147911]
[1729569454789,0.45126227,67421.0,67420.0,0.17147911]
[1729569455231,0.45126239,67421.0,67420.0,0.17147911]
[1729569458269,0.45125614,67421.0,67420.0,0.17147911]
[1729569459552,0.34009577,67421.0,67420.0,0.17147911]
[1729569460966,0.19177477,67421.0,67420.0,0.17147911]
[1729569461180,0.28070168,67421.0,67420.0,0.26817911]
[1729569463028,0.19177477,67421.0,67420.0,0.49410211]
[1729569463474,0.02763954,67421.0,67420.0,0.49410211]
[1729569464170,0.02763954,67421.0,67420.0,0.54235267]
[1729569464639,0.02763954,67421.0,67420.0,0.34577911]
[1729569464867,0.02763954,67421.0,67420.0,0.17147911]
[1729569465100,0.19176694,67421.0,67420.0,0.17147911]
[1729569465338,0.28069385,67421.0,67420.0,0.17147911]
[1729569465583,0.1871274,67421.0,67420.0,0.17147911]
[1729569465816,0.1917667,67421.0,67420.0,0.17147911]
[1729569466041,0.28069361,67421.0,67420.0,0.17147911]
[1729569466567,0.1917667,67421.0,67420.0,0.17147911]
[1729569466804,0.0276393,67421.0,67420.0,0.17147911]
[1729569467021,0.09433035,67421.0,67420.0,0.17147911]
[1729569467253,0.0276393,67421.0,67420.0,0.17147911]
[1729569467485,0.28068444,67421.0,67420.0,0.17147911]
[1729569469308,0.27604514,67421.0,67420.0,0.17147911]
[1729569469765,0.28068453,67421.0,67420.0,0.17147911]
[1729569470187,0.19175762,67421.0,67420.0,0.17147911]
[1729569473762,0.19175762,67421.0,67420.0,0.17110716]
[1729569474224,0.28068453,67421.0,67420.0,0.17110716]
[1729569474443,0.19175762,67421.0,67420.0,0.17110716]
[1729569475825,0.34007862,67421.0,67420.0,0.17110716]
[1729569476042,0.42900553,67421.0,67420.0,0.17110716]
[1729569476265,0.42900553,67421.0,67420.0,0.1502392]
[1729569476508,0.42900553,67421.0,67420.0,0.17107377]
[1729569476946,0.42900548,67421.0,67420.0,0.17107377]
[1729569478034,0.28061766,67421.0,67420.0,0.17107377]
[1729569478708,0.42893866,67421.0,67420.0,0.17107377]
[1729569487449,0.42429932,67421.0,67420.0,0.17107377]
[1729569487655,0.42893865,67421.0,67420.0,0.17107377]
[1729569488510,0.5522598,67421.0,67420.0,0.02248657]
[1729569488742,0.68560733,67421.0,67420.0,0.02248657]
[1729569488964,0.5522598,67421.0,67420.0,0.001652]
[1729569489175,0.5530858,67421.0,67420.0,0.001652]
[1729569489652,0.5420858,67421.0,67420.0,0.001652]
[1729569490072,0.5530858,67421.0,67420.0,0.001652]
[1729569490296,0.6299858,67421.0,67420.0,0.001652]
[1729569490539,0.7229858,67421.0,67420.0,0.001652]
[1729569490778,0.148337,67414.0,67413.0,0.22265268]
[1729569491203,0.15297731,67414.0,67413.0,0.22265268]
[1729569491449,0.148348,67409.0,67408.0,0.001652]
[1729569491667,0.15298831,67409.0,67408.0,0.15061115]
[1729569491883,0.15298831,67409.0,67408.0,0.16803709]
[1729569493383,0.148348,67409.0,67408.0,0.16803709]
[1729569493604,0.31693092,67409.0,67408.0,0.16803709]
[1729569493824,0.15298831,67409.0,67408.0,0.16803709]
[1729569494244,0.32493092,67409.0,67408.0,0.16803709]
[1729569494442,0.16098831,67409.0,67408.0,0.16803709]
[1729569494682,0.41610196,67409.0,67408.0,0.16803709]
[1729569494910,0.08622701,67409.0,67408.0,0.33553709]
[1729569495130,0.015,67409.0,67408.0,0.33553709]
[1729569497601,0.015,67409.0,67408.0,0.48388709]
[1729569498455,0.015,67409.0,67408.0,0.33553709]
[1729569499975,0.015,67409.0,67408.0,0.71153977]
[1729569500210,0.015,67409.0,67408.0,0.48888709]
[1729569500849,0.008,67409.0,67408.0,0.48888709]
[1729569501081,0.04901552,67419.0,67412.0,0.148339]
[1729569501299,0.19734352,67419.0,67418.0,0.10829658]
[1729569501512,0.19734352,67419.0,67418.0,0.25725573]
[1729569501971,0.19734352,67419.0,67418.0,0.27485009]
[1729569501972,0.21953151,67419.0,67418.0,0.27485009]
[1729569502200,0.21953151,67419.0,67418.0,0.37245009]
[1729569502430,0.15296755,67419.0,67418.0,0.37245009]
[1729569502645,0.00463955,67419.0,67418.0,0.37245009]
[1729569502871,0.06738996,67420.0,67419.0,0.075]
[1729569502872,0.07202951,67420.0,67419.0,0.075]
[1729569503083,0.07202951,67420.0,67419.0,0.22395915]
[1729569503084,0.21571296,67420.0,67419.0,0.22395915]
[1729569503328,0.22035251,67420.0,67419.0,0.24152599]
[1729569503739,0.15378855,67420.0,67419.0,0.24152599]
[1729569503957,0.19814284,67420.0,67419.0,0.24152599]
[1729569504369,0.20214284,67420.0,67419.0,0.24152599]
[1729569504832,0.15778855,67420.0,67419.0,0.24152599]
[1729569505620,0.2071435,67420.0,67419.0,0.24152599]
[1729569505851,0.20714344,67420.0,67419.0,0.24152599]
[1729569506093,0.20714295,67420.0,67419.0,0.24152599]
[1729569506331,0.20714298,67420.0,67419.0,0.24152599]
[1729569506799,0.16278852,67420.0,67419.0,0.24152599]
[1729569507023,0.20714309,67420.0,67419.0,0.24152599]
[1729569507682,0.16278852,67420.0,67419.0,0.24152599]
[1729569507934,0.22935248,67420.0,67419.0,0.24152599]
[1729569508132,0.16278852,67420.0,67419.0,0.24152599]
[1729569509091,0.05882162,67420.0,67419.0,0.24152599]
[1729569509335,0.01446546,67420.0,67419.0,0.24152599]
[1729569509556,0.158149,67420.0,67419.0,0.24152599]
[1729569509782,0.009826,67420.0,67419.0,0.24152599]
[1729569510007,0.009826,67420.0,67419.0,0.22395915]
[1729569510257,0.009826,67420.0,67419.0,0.24141294]
[1729569510491,0.01446544,67420.0,67419.0,0.24141294]
[1729569511177,0.16278844,67420.0,67419.0,0.24141294]
[1729569512476,0.01446544,67420.0,67419.0,0.24141294]
[1729569512703,0.009826,67420.0,67419.0,0.24141294]
[1729569512903,0.01446544,67420.0,67419.0,0.24141294]
[1729569515110,0.009826,67420.0,67419.0,0.24141294]
[1729569516369,0.009826,67420.0,67419.0,0.24306494]
[1729569516571,0.05418204,67420.0,67419.0,0.24306494]
[1729569516771,0.01446544,67420.0,67419.0,0.24306494]
[1729569517418,0.01446543,67420.0,67419.0,0.24306494]
[1729569518765,0.01446543,67420.0,67419.0,0.61626891]
[1729569518987,0.009826,67420.0,67419.0,0.48359094]
[1729569520702,0.009826,67420.0,67419.0,0.33526494]
[1729569522056,0.009826,67420.0,67419.0,0.44356152]
[1729569524756,0.01446523,67420.0,67419.0,0.44356152]
[1729569524980,0.009826,67420.0,67419.0,0.44356152]
[1729569525484,0.158149,67420.0,67419.0,0.16806494]
[1729569525725,0.20714427,67420.0,67419.0,0.16806494]
[1729569526160,0.16278822,67420.0,67419.0,0.15061115]
[1729569526382,0.2293223,67420.0,67419.0,0.15061115]
[1729569528697,0.22932267,67420.0,67419.0,0.15061115]
[1729569532483,0.22468308,67420.0,67419.0,0.15061115]
[1729569532704,0.22932267,67420.0,67419.0,0.15061115]
[1729569539004,0.22932267,67420.0,67419.0,0.16804322]
[1729569539436,0.16248859,67420.0,67419.0,0.16804322]
[1729569539643,0.22899113,67420.0,67419.0,0.16804322]
[1729569540074,0.22435154,67420.0,67419.0,0.16804322]
[1729569540289,0.2289911,67420.0,67419.0,0.16804322]
[1729569540905,0.16248856,67420.0,67419.0,0.16804322]
[1729569541368,0.22899123,67420.0,67419.0,0.16804322]
[1729569541577,0.3261596,67420.0,67419.0,0.16804322]
[1729569541782,0.3261594,67420.0,67419.0,0.16804322]
[1729569542001,0.16248856,67420.0,67419.0,0.16804322]
[1729569542435,0.32618291,67420.0,67419.0,0.16804322]
[1729569542854,0.41485297,67420.0,67419.0,0.16804322]
[1729569543546,0.41485298,67420.0,67419.0,0.16804322]
[1729569546781,0.41485297,67420.0,67419.0,0.16804322]
[1729569548189,0.41494996,67420.0,67419.0,0.16804322]
[1729569553162,0.41493606,67420.0,67419.0,0.16804322]
[1729569555298,0.42235936,67420.0,67419.0,0.16804322]
[1729569556395,0.41493606,67420.0,67419.0,0.16804322]
[1729569557016,0.42235933,67420.0,67419.0,0.16804322]
[1729569558009,0.41493605,67420.0,67419.0,0.16804322]
[1729569558220,0.42235364,67420.0,67419.0,0.16804322]
[1729569567668,0.33364382,67420.0,67419.0,0.16804322]
[1729569570458,0.44453109,67420.0,67419.0,0.16804322]
[1729569571470,0.33364382,67420.0,67419.0,0.16804322]
[1729569572693,0.33364382,67420.0,67419.0,0.15061115]
[1729569573358,0.33377134,67420.0,67419.0,0.15061115]
[1729569585493,0.32170851,67420.0,67419.0,0.15061115]
[1729569585685,0.33377134,67420.0,67419.0,0.15061115]
[1729569586763,0.44475987,67420.0,67419.0,0.15061115]
[1729569587214,0.44475987,67420.0,67419.0,0.1680014]
[1729569588301,0.29643687,67420.0,67419.0,0.1680014]
[1729569588720,0.18544834,67420.0,67419.0,0.1680014]
[1729569588957,0.17802506,67420.0,67419.0,0.2632014]
[1729569589184,0.26680917,67420.0,67419.0,0.2632014]
[1729569590505,0.26680359,67420.0,67419.0,0.2632014]
[1729569590728,0.26680359,67420.0,67419.0,0.3388014]
[1729569590930,0.08075141,67420.0,67419.0,0.3388014]
[1729569591145,0.26679984,67420.0,67419.0,0.3388014]
[1729569591359,0.26678328,67420.0,67419.0,0.3388014]
[1729569593329,0.26677276,67420.0,67419.0,0.3388014]
[1729569596199,0.17800482,67420.0,67419.0,0.3388014]
[1729569596864,0.17336527,67420.0,67419.0,0.3388014]
[1729569597070,0.17800466,67420.0,67419.0,0.3388014]
[1729569600420,0.01416539,67420.0,67419.0,0.3388014]
[1729569600630,0.009526,67420.0,67419.0,0.3388014]
[1729569600843,0.01416536,67420.0,67419.0,0.3388014]
[1729569601682,0.16248836,67420.0,67419.0,0.3388014]
[1729569602118,0.25124078,67420.0,67419.0,0.3388014]
[1729569602330,0.4150514,67420.0,67419.0,0.3388014]
[1729569603001,0.32629898,67420.0,67419.0,0.3388014]
[1729569603693,0.41504813,67420.0,67419.0,0.3388014]
[1729569603900,0.16248851,67420.0,67419.0,0.3388014]
[1729569604323,0.3262596,67420.0,67419.0,0.3388014]
[1729569604533,0.32623159,67420.0,67419.0,0.3388014]
[1729569604957,0.41494377,67420.0,67419.0,0.3388014]
[1729569605376,0.26662077,67420.0,67419.0,0.3388014]
[1729569605596,0.16248851,67420.0,67419.0,0.3388014]
[1729569605816,0.32618687,67420.0,67419.0,0.3388014]
[1729569606021,0.41489818,67420.0,67419.0,0.3388014]
[1729569606443,0.16248851,67420.0,67419.0,0.3388014]
[1729569606650,0.25120069,67420.0,67419.0,0.3388014]
[1729569606869,0.41490663,67420.0,67419.0,0.3388014]
[1729569607141,0.32619445,67420.0,67419.0,0.3388014]
[1729569607346,0.414892,67420.0,67419.0,0.3388014]
[1729569607584,0.41489198,67420.0,67419.0,0.3388014]
[1729569607995,0.32619443,67420.0,67419.0,0.3388014]
[1729569608205,0.4148781,67420.0,67419.0,0.3388014]
[1729569608635,0.32619443,67420.0,67419.0,0.2436014]
[1729569609059,0.43713495,67420.0,67419.0,0.1680014]
[1729569609318,0.64631078,67420.0,67419.0,0.01904225]
[1729569609519,0.72311078,67420.0,67419.0,0.01904225]
[1729569609779,0.4664912,67420.0,67412.0,0.02322169]
[1729569610026,0.4664912,67420.0,67404.0,0.22430468]
[1729569610027,0.148348,67409.0,67404.0,0.22430468]
[1729569610238,0.31205394,67409.0,67404.0,0.22430468]
[1729569611522,0.31178679,67409.0,67404.0,0.22430468]
[1729569612359,0.214746,67409.0,67404.0,0.22430468]
[1729569612767,0.21470339,67409.0,67404.0,0.22430468]
[1729569613589,0.14830539,67409.0,67404.0,0.22430468]
[1729569613929,0.14812955,67409.0,67404.0,0.22430468]
[1729569614142,0.14812955,67409.0,67406.0,0.10829658]
[1729569614366,0.19337922,67409.0,67406.0,0.10829658]
[1729569614805,0.19337893,67409.0,67406.0,0.10829658]
[1729569615067,0.19237893,67409.0,67406.0,0.10829658]
[1729569615299,0.19337893,67409.0,67406.0,0.10829658]
[1729569616181,0.1922277,67409.0,67406.0,0.10829658]
[1729569617403,0.14797832,67409.0,67406.0,0.10829658]
[1729569617622,0.14780245,67409.0,67408.0,0.01043936]
[1729569617833,0.14780245,67409.0,67408.0,0.001652]
[1729569619004,0.14780245,67409.0,67408.0,0.01056608]
[1729569619231,0.001,67409.0,67408.0,0.08606608]
[1729569619487,0.001,67409.0,67408.0,0.17756608]
[1729569619488,0.00069268,67409.0,67408.0,0.17756608]
[1729569620585,0.148343,67411.0,67408.0,0.17756608]
[1729569620834,0.148343,67411.0,67408.0,0.17704233]
[1729569621062,0.148346,67410.0,67409.0,0.14895915]
[1729569621795,0.19259538,67410.0,67409.0,0.15786924]
[1729569622234,0.19215301,67410.0,67409.0,0.15786924]
[1729569622454,0.14790363,67410.0,67409.0,0.15786924]
[1729569624064,0.15590363,67410.0,67409.0,0.15786924]
[1729569624514,0.16190363,67410.0,67409.0,0.15786924]
[1729569625174,0.15590363,67410.0,67409.0,0.15786924]
[1729569625397,0.16246127,67410.0,67409.0,0.15786924]
[1729569631319,0.16328727,67410.0,67409.0,0.15786924]
[1729569632385,0.16296927,67410.0,67409.0,0.15786924]
[1729569643029,0.20718259,67410.0,67409.0,0.15786924]
[1729569644292,0.16296927,67410.0,67409.0,0.15786924]
[1729569644753,0.16296927,67410.0,67409.0,0.15952124]
[1729569645357,0.22928926,67410.0,67409.0,0.15952124]
[1729569648172,0.16296927,67410.0,67409.0,0.15952124]
[1729569648390,0.32624313,67410.0,67409.0,0.15952124]
[1729569648611,0.16296927,67410.0,67409.0,0.15952124]
[1729569649307,0.015826,67410.0,67409.0,0.32932124]
[1729569651139,0.164171,67410.0,67409.0,0.32932124]
[1729569651354,0.20841252,67410.0,67409.0,0.32932124]
[1729569652273,0.20842722,67410.0,67409.0,0.32932124]
[1729569652502,0.164171,67410.0,67409.0,0.32932124]
[1729569653440,0.23055534,67410.0,67409.0,0.32932124]
[1729569654321,0.32766808,67410.0,67409.0,0.32932124]
[1729569654551,0.32766669,67410.0,67409.0,0.32932124]
[1729569655295,0.41635632,67410.0,67409.0,0.32932124]
[1729569655519,0.32773793,67410.0,67409.0,0.32932124]
[1729569655978,0.41635661,67410.0,67409.0,0.32932124]
[1729569656209,0.32773793,67410.0,67409.0,0.32932124]
[1729569656659,0.41635464,67410.0,67409.0,0.32932124]
[1729569657055,0.32773793,67410.0,67409.0,0.32932124]
[1729569657781,0.4163538,67410.0,67409.0,0.32932124]
[1729569659194,0.41633379,67410.0,67409.0,0.32932124]
[1729569659899,0.32773793,67410.0,67409.0,0.32932124]
[1729569660558,0.41633202,67410.0,67409.0,0.32932124]
[1729569660804,0.26798702,67410.0,67409.0,0.32932124]
[1729569661051,0.26793785,67410.0,67409.0,0.32932124]
[1729569661291,0.41628285,67410.0,67409.0,0.32932124]
[1729569661906,0.26793785,67410.0,67409.0,0.32932124]
[1729569662128,0.06011811,67410.0,67409.0,0.47766924]
[1729569662389,0.015826,67410.0,67409.0,0.47766924]
[1729569662583,0.015826,67410.0,67409.0,0.48266924]
[1729569663022,0.008826,67410.0,67409.0,0.48266924]
[1729569663241,0.008826,67410.0,67409.0,0.63162839]
[1729569663459,0.000826,67410.0,67409.0,0.48266924]
[1729569663679,0.04429211,67419.0,67418.0,0.148328]
[1729569663888,0.04429211,67419.0,67418.0,0.38028715]
[1729569664109,0.000526,67420.0,67418.0,0.4658089]
[1729569664110,0.04481811,67420.0,67418.0,0.4658089]
[1729569664330,0.000526,67420.0,67419.0,0.25725573]
[1729569664984,0.000526,67420.0,67419.0,0.41447097]
[1729569665194,0.000526,67420.0,67419.0,0.26614497]
[1729569666051,0.000526,67420.0,67419.0,0.41447097]
[1729569666276,0.004526,67420.0,67419.0,0.36316222]
[1729569666719,0.004526,67420.0,67419.0,0.51148822]
[1729569666923,0.004526,67420.0,67419.0,0.36316222]
[1729569667339,0.004526,67420.0,67419.0,0.26614497]
[1729569667764,0.008526,67420.0,67419.0,0.26614497]
[1729569671799,0.008526,67420.0,67419.0,0.41447097]
[1729569672016,0.008526,67420.0,67419.0,0.35824497]
[1729569673267,0.008526,67420.0,67419.0,0.24994839]
[1729569673881,0.008526,67420.0,67419.0,0.73239338]
[1729569674117,0.008526,67420.0,67419.0,0.50677439]
[1729569674899,0.004526,67420.0,67419.0,0.50677439]
[1729569675129,0.000526,67420.0,67419.0,0.33044839]
[1729569675276,0.000526,67420.0,67419.0,0.33144839]
[1729569682061,0.000526,67420.0,67419.0,0.47977439]
[1729569682266,0.000526,67420.0,67419.0,0.33144839]
[1729569686183,0.000526,67420.0,67419.0,0.47977439]
[1729569686498,0.000526,67420.0,67419.0,0.33144839]
[1729569687608,0.000526,67420.0,67419.0,0.43974497]
[1729569688216,0.14893137,67421.0,67419.0,0.43974497]
[1729569688487,0.14888687,67421.0,67419.0,0.49905227]
[1729569689797,0.14888687,67421.0,67419.0,0.49805227]
[1729569690288,0.14888687,67421.0,67419.0,0.49905227]
[1729569691594,0.00463933,67420.0,67419.0,0.43974497]
[1729569693275,0.00463933,67420.0,67419.0,0.43874497]
[1729569694631,0.00463933,67420.0,67419.0,0.43974497]
[1729569695112,0.15296233,67420.0,67419.0,0.43974497]
[1729569696511,0.00463933,67420.0,67419.0,0.43974497]
[1729569698885,0.14888787,67421.0,67419.0,0.43974497]
[1729569699119,0.00463934,67420.0,67419.0,0.43974497]
[1729569699354,0.00463935,67420.0,67419.0,0.43974497]
[1729569699836,0.00463935,67420.0,67419.0,0.43874497]
[1729569700090,0.15296235,67420.0,67419.0,0.33044839]
[1729569700348,0.31286697,67420.0,67419.0,0.00988924]
[1729569700623,0.33495951,67420.0,67419.0,0.00888924]
[1729569700865,0.148343,67411.0,67410.0,0.001652]
[1729569701092,0.15298235,67411.0,67410.0,0.15061115]
[1729569702752,0.15298235,67411.0,67410.0,0.15161115]
[1729569702954,0.15398235,67411.0,67410.0,0.15261115]
[1729569703192,0.15298235,67411.0,67410.0,0.15161115]
[1729569703630,0.15298235,67411.0,67410.0,0.15261115]
[1729569703631,0.00463935,67411.0,67410.0,0.15261115]
[1729569704097,0.148342,67412.0,67410.0,0.15261115]
[1729569704333,0.148342,67412.0,67411.0,0.14895915]
[1729569704536,0.15298202,67412.0,67411.0,0.14895915]
[1729569706270,0.15298202,67412.0,67411.0,0.14995915]
[1729569706736,0.15298201,67412.0,67411.0,0.14995915]
[1729569706943,0.00464001,67412.0,67411.0,0.14995915]
[1729569707145,0.04427776,67413.0,67411.0,0.15095915]
[1729569707146,0.00463991,67413.0,67411.0,0.15095915]
[1729569707576,0.00463991,67413.0,67412.0,0.00865014]
[1729569707577,0.15297891,67413.0,67412.0,0.00865014]
[1729569707782,0.00463991,67413.0,67412.0,0.15760929]
[1729569707989,0.19725567,67414.0,67412.0,0.15760929]
[1729569708203,0.19261576,67414.0,67413.0,0.14895915]
[1729569708414,0.148338,67414.0,67413.0,0.14895915]
[1729569708616,0.15297789,67414.0,67413.0,0.14895915]
[1729569708810,0.15297789,67414.0,67413.0,0.15760929]
[1729569709188,0.19725565,67414.0,67413.0,0.15760929]
[1729569709426,0.148338,67414.0,67413.0,0.15760929]
[1729569709612,0.19725565,67414.0,67413.0,0.15760929]
[1729569709817,0.19361576,67414.0,67413.0,0.15760929]
[1729569710026,0.19825565,67414.0,67413.0,0.15760929]
[1729569710372,0.149338,67414.0,67413.0,0.15760929]
[1729569710583,0.19825565,67414.0,67413.0,0.15760929]
[1729569710789,0.150338,67414.0,67413.0,0.15760929]
[1729569710989,0.15497789,67414.0,67413.0,0.15760929]
[1729569711638,0.15297789,67414.0,67413.0,0.15760929]
[1729569711813,0.15297789,67414.0,67413.0,0.15860929]
[1729569712033,0.00463989,67414.0,67413.0,0.43700587]
[1729569712240,0.04893449,67416.0,67413.0,0.58534487]
[1729569712448,0.00463989,67416.0,67413.0,0.58534487]
[1729569712667,0.00463989,67416.0,67413.0,0.58699687]
[1729569712877,0.001,67414.0,67413.0,0.43865787]
[1729569713082,0.001,67414.0,67413.0,0.58699687]
[1729569713281,0.001,67414.0,67413.0,0.47770029]
[1729569713489,0.001,67414.0,67413.0,0.58599687]
[1729569713693,0.002,67414.0,67413.0,0.58599687]
[1729569713896,0.001,67414.0,67413.0,0.58599687]
[1729569714098,0.00463989,67416.0,67413.0,0.58599687]
[1729569714314,0.0442946,67417.0,67413.0,0.58699687]
[1729569714524,0.00463976,67416.0,67413.0,0.58699687]
[1729569715151,0.00463976,67416.0,67414.0,0.28897005]
[1729569715363,0.00463976,67416.0,67415.0,0.14895915]
[1729569715570,0.00463976,67416.0,67415.0,0.15767158]
[1729569715851,0.00463976,67416.0,67415.0,0.30600558]
[1729569716300,0.00463976,67416.0,67415.0,0.15767158]
[1729569716527,0.00463976,67417.0,67415.0,0.15767158]
[1729569716745,0.04893436,67417.0,67415.0,0.15767158]
[1729569716929,0.00463976,67416.0,67415.0,0.15767158]
[1729569717148,0.00463976,67417.0,67415.0,0.15767158]
[1729569717376,0.00463976,67416.0,67415.0,0.15767158]
[1729569717601,0.00663976,67416.0,67415.0,0.15767158]
[1729569717812,0.00863976,67416.0,67415.0,0.26837576]
[1729569718464,0.00863973,67416.0,67415.0,0.26837576]
[1729569718664,0.00863973,67416.0,67415.0,0.15767158]
[1729569721423,0.00863975,67416.0,67415.0,0.15767158]
[1729569722059,0.15697175,67416.0,67415.0,0.15767158]
[1729569723809,0.20126635,67416.0,67415.0,0.15767158]
[1729569724000,0.15697175,67416.0,67415.0,0.15767158]
[1729569724654,0.20127277,67416.0,67415.0,0.15767158]
[1729569724864,0.15697175,67416.0,67415.0,0.15767158]
[1729569725285,0.152332,67416.0,67415.0,0.15767158]